bitfinex-derivatives/quotes_SOLF0:USTF0_20250411
["timestamp","ask_amount","ask_price","bid_price","bid_amount"]
[1744377510781,37.6411884,118.32,118.29,0.06387395]
[1744377511379,8.4577,118.31,118.29,0.06387395]
[1744377511881,37.6411884,118.32,118.29,0.06387395]
[1744377512583,8.4579,118.3,118.29,0.06387395]
[1744377512884,37.6411884,118.32,118.25,6.383]
[1744377513083,37.58,118.32,118.26,8.4604]
[1744377513584,37.58,118.32,118.25,14.8441]
[1744377513784,0.05537575,118.3,118.2,93.30894191]
[1744377513990,21.33077771,118.29,118.21,1.47142767]
[1744377514178,0.05458147,118.26,118.24,8.4621]
[1744377516686,0.05458147,118.26,118.25,8.4615]
[1744377517684,37.58,118.28,118.27,8.4601]
[1744377519290,46.0394,118.28,118.26,8.51468143]
[1744377519490,37.58,118.28,118.26,0.05428143]
[1744377519791,8.4601,118.27,118.26,0.05428143]
[1744377521292,27.1541256,118.28,118.26,0.05428143]
[1744377522291,8.4601,118.27,118.26,0.05428143]
[1744377530296,40.54835936,118.28,118.2,9.7896]
[1744377530500,13.39423376,118.26,118.2,9.7896]
[1744377530892,8.4644,118.21,118.2,6.4832]
[1744377533399,37.62,118.25,118.2,6.4832]
[1744377533793,8.4639,118.22,118.2,6.4832]
[1744377534602,0.05962646,118.22,118.2,6.53768386]
[1744377535006,8.4634,118.23,118.2,6.53768386]
[1744377535300,8.4637,118.22,118.2,6.53768386]
[1744377535698,37.62,118.25,118.2,6.53768386]
[1744377536098,0.06425055,118.24,118.2,6.53768386]
[1744377536603,8.4633,118.23,118.2,6.53768386]
[1744377537104,8.4637,118.22,118.2,6.53768386]
[1744377537306,0.06425055,118.24,118.2,0.05448386]
[1744377537804,8.4644,118.21,118.2,0.05448386]
[1744377538503,45.404,118.22,118.2,0.05448386]
[1744377538803,36.94,118.22,118.2,0.05448386]
[1744377539104,0.06425055,118.24,118.2,0.05448386]
[1744377539803,8.4633,118.23,118.2,0.05448386]
[1744377540006,0.06425055,118.24,118.2,0.05448386]
[1744377540205,8.4634,118.23,118.2,8.51928386]
[1744377540498,36.94,118.23,118.2,0.05448386]
[1744377541806,8.4644,118.21,118.2,0.05448386]
[1744377543701,8.4638,118.22,118.2,0.05448386]
[1744377543907,0.06425055,118.24,118.2,0.05448386]
[1744377544102,0.06425055,118.24,118.21,8.4643]
[1744377544399,0.06425055,118.24,118.2,0.05448386]
[1744377544795,0.06425055,118.24,118.2,21.50586043]
[1744377545005,24.67037657,118.31,118.2,21.50586043]
[1744377545207,8.4607,118.27,118.23,8.4625]
[1744377545598,36.94,118.27,118.2,36.94]
[1744377546106,0.05975488,118.25,118.22,0.05591095]
[1744377546304,8.4625,118.24,118.22,0.05591095]
[1744377546506,0.05975488,118.25,118.22,0.05591095]
[1744377547301,36.94,118.24,118.22,0.05591095]
[1744377547505,8.4629,118.23,118.22,0.05591095]
[1744377550811,36.94,118.24,118.22,0.05591095]
[1744377551305,0.05975488,118.25,118.22,0.05591095]
[1744377551811,0.05975488,118.25,118.24,8.4622]
[1744377554806,0.05975488,118.25,118.22,0.05591095]
[1744377555698,0.05975488,118.25,118.22,8.51931095]
[1744377555903,36.94,118.24,118.22,0.05591095]
[1744377556310,8.4629,118.23,118.22,0.05591095]
[1744377559313,36.94,118.24,118.16,20.08169085]
[1744377560411,8.52109772,118.21,118.19,0.05711365]
[1744377562013,8.4651,118.2,118.19,0.05711365]
[1744377562511,0.05599772,118.21,118.19,0.05711365]
[1744377562814,0.05599772,118.21,118.19,8.52291365]
[1744377563112,45.46079772,118.21,118.19,8.52291365]
[1744377563310,36.99599772,118.21,118.19,8.52291365]
[1744377563513,36.99599772,118.21,118.2,8.4651]
[1744377564110,36.94,118.24,118.22,8.4635]
[1744377564315,36.94,118.24,118.19,13.40485069]
[1744377564509,36.94,118.27,118.21,13.40485069]
[1744377564709,8.4613,118.26,118.24,8.4622]
[1744377564909,36.94,118.27,118.22,4.3331]
[1744377565104,45.4004,118.27,118.22,4.3331]
[1744377565314,0.05394502,118.26,118.25,8.4612]
[1744377575643,36.92,118.33,118.28,8.4593]
[1744377575862,36.92,118.33,118.25,21.42788387]
[1744377576038,36.92,118.33,118.25,58.34788387]
[1744377576339,8.457,118.32,118.25,58.34788387]
[1744377576554,36.92,118.33,118.25,58.34788387]
[1744377576743,0.06255619,118.3,118.27,0.06419503]
[1744377577154,8.4589,118.29,118.27,0.06419503]
[1744377578746,8.4589,118.29,118.27,8.52429503]
[1744377578941,8.4589,118.29,118.27,0.06419503]
[1744377579134,8.4594,118.28,118.27,0.06419503]
[1744377602940,45.3789,118.29,118.27,8.52429503]
[1744377603239,45.3789,118.29,118.27,0.06419503]
[1744377603240,36.92,118.29,118.27,0.06419503]
[1744377603440,0.06255619,118.3,118.27,0.06419503]
[1744377603641,0.06255619,118.3,118.28,8.4594]
[1744377604037,0.06255619,118.3,118.28,14.9234]
[1744377604754,0.06255619,118.3,118.29,8.4587]
[1744377605044,36.9,118.32,118.28,6.464]
[1744377605441,45.3568,118.32,118.28,6.464]
[1744377605945,0.06154306,118.31,118.28,6.464]
[1744377606145,0.06154306,118.31,118.29,8.4587]
[1744377606346,0.06154306,118.31,118.28,6.464]
[1744377606841,0.06154306,118.31,118.3,8.4579]
[1744377607046,36.9,118.32,118.28,6.464]
[1744377607242,36.9,118.35,118.28,6.464]
[1744377607441,8.4558,118.33,118.31,8.4568]
[1744377607641,36.88,118.38,118.31,13.39310985]
[1744377608035,0.05378433,118.36,118.35,8.4539]
[1744377608241,36.88,118.41,118.35,13.39310985]
[1744377608436,36.88,118.42,118.35,13.39310985]
[1744377608641,50.27310985,118.42,118.33,50.27310985]
[1744377608846,13.39310985,118.4,118.33,50.27310985]
[1744377609042,8.4529,118.37,118.34,8.4546]
[1744377609243,8.4529,118.37,118.34,8.50806704]
[1744377609244,8.51544311,118.37,118.34,8.50806704]
[1744377609453,0.06254311,118.37,118.34,0.05346704]
[1744377609749,0.06254311,118.37,118.35,8.4543]
[1744377609943,0.06254311,118.37,118.34,0.05346704]
[1744377610252,0.06254311,118.37,118.35,8.4543]
[1744377610745,0.06254311,118.37,118.35,8.4544]
[1744377610945,13.39310985,118.44,118.36,13.39310985]
[1744377611145,645.88,118.45,118.36,13.39310985]
[1744377611146,36.88,118.45,118.37,2.2594]
[1744377611351,36.88,118.45,118.39,8.4512]
[1744377611850,8.4492,118.43,118.4,8.4507]
[1744377612148,0.05626928,118.43,118.41,0.06161956]
[1744377612953,8.4494,118.42,118.41,0.06161956]
[1744377613147,50.27310985,118.42,118.37,2.2594]
[1744377613743,36.88,118.42,118.37,2.2594]
[1744377614050,8.4504,118.41,118.37,2.2594]
[1744377614247,8.4504,118.41,118.38,0.05935166]
[1744377614451,0.05460635,118.4,118.38,0.05935166]
[1744377615354,0.05460635,118.4,118.39,8.4515]
[1744377615554,8.50540635,118.4,118.38,0.05935166]
[1744377616554,0.05460635,118.4,118.38,8.51115166]
[1744377617666,0.05460635,118.4,118.39,8.4515]
[1744377617844,36.88,118.42,118.38,0.05935166]
[1744377618050,36.88,118.42,118.4,8.4505]
[1744377618653,36.88,118.42,118.39,8.4512]
[1744377618856,45.39438435,118.42,118.39,8.4512]
[1744377619558,8.4501,118.41,118.39,8.4512]
[1744377619759,8.4501,118.41,118.38,8.51115166]
[1744377620553,8.4501,118.41,118.39,8.4515]
[1744377621860,8.51428435,118.42,118.39,8.4515]
[1744377622060,8.51428435,118.42,118.4,8.4506]
[1744377622864,8.4508,118.4,118.38,0.05935166]
[1744377623857,0.06458435,118.42,118.38,0.05935166]
[1744377624066,0.06458435,118.42,118.39,13.39310985]
[1744377624458,36.86,118.48,118.41,13.39310985]
[1744377624654,13.39310985,118.5,118.42,4.2595]
[1744377624865,45.3049,118.49,118.45,8.4469]
[1744377625063,36.86,118.49,118.45,8.4469]
[1744377625567,0.05688829,118.48,118.46,0.06276286]
[1744377626157,8.50198829,118.48,118.46,0.06276286]
[1744377627067,8.4458,118.47,118.46,0.06276286]
[1744377627365,0.05688829,118.48,118.46,0.06276286]
[1744377627862,8.50228829,118.48,118.46,0.06276286]
[1744377628367,0.05688829,118.48,118.46,0.06276286]
[1744377628664,36.8,118.52,118.46,0.06276286]
[1744377628865,45.2425,118.52,118.46,0.06276286]
[1744377629066,45.2425,118.52,118.48,8.4444]
[1744377629873,8.5074036,118.51,118.49,0.05966095]
[1744377630164,0.0644036,118.51,118.49,8.50406095]
[1744377631067,0.0644036,118.51,118.49,0.05966095]
[1744377631461,8.5074036,118.51,118.49,0.05966095]
[1744377631756,0.0644036,118.51,118.49,8.50386095]
[1744377633077,634.9662197,118.5,118.4,13.39310985]
[1744377633369,13.39310985,118.47,118.4,13.39310985]
[1744377633560,8.4461,118.47,118.44,8.4473]
[1744377633760,50.19310985,118.49,118.42,17.65260985]
[1744377634164,0.06267673,118.47,118.44,0.06131745]
[1744377634471,36.8,118.46,118.44,0.06131745]
[1744377635071,45.2469,118.46,118.44,0.06131745]
[1744377635270,8.4469,118.46,118.44,0.06131745]
[1744377635471,45.2469,118.46,118.44,0.06131745]
[1744377635975,45.2469,118.46,118.44,8.50911745]
[1744377636467,36.8,118.46,118.45,8.4472]
[1744377636868,0.06267673,118.47,118.44,13.4544273]
[1744377637071,7.673e-05,118.47,118.46,21.83960985]
[1744377640073,8.4425,118.52,118.5,8.4431]
[1744377640276,45.2419,118.53,118.48,13.39310985]
[1744377641178,0.05807601,118.52,118.49,0.0539156]
[1744377641374,0.05807601,118.52,118.51,8.443]
[1744377642075,36.85807601,118.52,118.49,0.0539156]
[1744377642274,8.4437,118.5,118.49,0.0539156]
[1744377642673,36.85807601,118.52,118.49,0.0539156]
[1744377643475,8.4433,118.51,118.49,0.0539156]
[1744377643976,36.85807601,118.52,118.49,0.0539156]
[1744377644277,0.05807601,118.52,118.49,13.44702545]
[1744377644875,0.05807601,118.52,118.51,8.443]
[1744377647482,0.05807601,118.52,118.49,0.0539156]
[1744377647981,0.05807601,118.52,118.49,13.44702545]
[1744377648278,0.05807601,118.52,118.51,13.39310985]
[1744377648473,608.18,118.57,118.51,13.39310985]
[1744377648676,644.96,118.57,118.51,13.39310985]
[1744377648878,644.96,118.57,118.52,2.2069]
[1744377649081,8.4394,118.56,118.53,8.4412]
[1744377649279,644.96,118.57,118.53,8.4412]
[1744377649478,644.96,118.57,118.52,2.2069]
[1744377649679,0.05536301,118.56,118.54,0.05613098]
[1744377651483,8.49506301,118.56,118.54,8.49663098]
[1744377651676,0.05536301,118.56,118.54,0.05613098]
[1744377652187,8.4401,118.55,118.54,0.05613098]
[1744377654286,8.49506301,118.56,118.54,8.49683098]
[1744377654676,0.05536301,118.56,118.54,0.05613098]
[1744377654985,0.05536301,118.56,118.54,8.49663098]
[1744377655381,8.49516301,118.56,118.54,8.49663098]
[1744377655584,8.49516301,118.56,118.54,0.05613098]
[1744377655785,0.05536301,118.56,118.54,0.05613098]
[1744377656175,14.29130985,118.62,118.57,8.4383]
[1744377656383,8.4374,118.59,118.57,8.4383]
[1744377656585,8.4374,118.59,118.55,13.39310985]
[1744377656787,13.39310985,118.6,118.54,4.4913]
[1744377656986,8.439,118.57,118.51,17.90770985]
[1744377657386,36.74,118.58,118.54,8.4407]
[1744377657387,0.05908374,118.55,118.54,8.4407]
[1744377658786,0.05908374,118.55,118.53,0.06392905]
[1744377658787,45.1783,118.58,118.56,8.4389]
[1744377658986,8.4383,118.58,118.56,8.4389]
[1744377659182,36.74,118.61,118.52,46.27009737]
[1744377659383,8.4375,118.59,118.57,8.4383]
[1744377659583,36.74,118.61,118.53,13.39310985]
[1744377659984,8.49507562,118.58,118.56,8.49941314]
[1744377660888,0.05707562,118.58,118.56,0.06031314]
[1744377661284,0.05707562,118.58,118.56,8.49941314]
[1744377661490,0.05707562,118.58,118.56,0.06031314]
[1744377661690,0.05707562,118.58,118.57,8.4387]
[1744377662391,0.05707562,118.58,118.56,8.49931314]
[1744377662592,0.05707562,118.58,118.56,0.06031314]
[1744377662994,0.05707562,118.58,118.57,8.4387]
[1744377670397,8.4387,118.57,118.56,0.06031314]
[1744377673004,36.77707562,118.58,118.56,0.06031314]
[1744377673496,36.77707562,118.58,118.57,8.4387]
[1744377674597,0.05707562,118.58,118.57,8.4387]
[1744377678905,36.72,118.61,118.6,8.4365]
[1744377679301,8.4351,118.63,118.57,13.39310985]
[1744377679502,8.4351,118.63,118.61,8.4357]
[1744377679902,45.1537,118.64,118.57,13.39310985]
[1744377680103,45.1537,118.64,118.62,8.4348]
[1744377680404,45.1537,118.64,118.61,0.06178275]
[1744377680602,45.1537,118.64,118.61,8.49698275]
[1744377681001,36.72,118.64,118.62,8.4351]
[1744377681206,52.20270985,118.67,118.62,8.4351]
[1744377682409,8.4335,118.65,118.62,8.4351]
[1744377682707,52.20270985,118.67,118.61,8.49718275]
[1744377682903,52.20270985,118.67,118.61,0.06178275]
[1744377683097,52.20270985,118.67,118.62,8.4351]
[1744377683507,8.4336,118.65,118.62,8.4351]
[1744377683707,52.20270985,118.67,118.62,8.4351]
[1744377683908,52.20270985,118.67,118.63,8.4343]
[1744377684109,8.4332,118.65,118.59,13.39310985]
[1744377684306,8.4332,118.65,118.64,0.05396979]
[1744377684505,8.4339,118.64,118.61,8.4353]
[1744377684707,8.4339,118.64,118.63,0.06121344]
[1744377684898,45.1539,118.64,118.63,0.06121344]
[1744377685605,36.72,118.64,118.57,13.39310985]
[1744377685904,8.4356,118.62,118.59,8.4368]
[1744377686109,13.39310985,118.63,118.56,6.6884]
[1744377686713,13.4555999,118.61,118.58,0.06123674]
[1744377687106,8.4373,118.59,118.58,0.06123674]
[1744377687302,16.8649,118.66,118.58,0.06123674]
[1744377687306,16.8602,118.7,118.58,0.06123674]
[1744377687502,2.0876,118.71,118.63,13.39310985]
[1744377687710,8.4298,118.7,118.66,8.4322]
[1744377687911,36.68,118.7,118.65,13.39310985]
[1744377688115,8.4262,118.75,118.71,8.4287]
[1744377688510,8.4262,118.75,118.72,0.05968101]
[1744377688911,45.1048,118.77,118.73,8.4268]
[1744377689315,232.52986788,118.78,118.72,0.05968101]
[1744377689516,8.424,118.78,118.74,8.4262]
[1744377689913,8.424,118.78,118.75,0.06476387]
[1744377690314,8.4234,118.79,118.75,8.49016387]
[1744377690512,8.4234,118.79,118.75,0.06476387]
[1744377690814,36.66,118.8,118.75,0.06476387]
[1744377691011,37.6103,118.8,118.75,0.06476387]
[1744377691213,0.9503,118.8,118.75,0.06476387]
[1744377691418,36.66,118.81,118.75,0.06476387]
[1744377691814,36.66,118.81,118.78,8.4236]
[1744377692318,36.66,118.81,118.78,8.48372356]
[1744377692516,45.0817,118.81,118.78,8.48372356]
[1744377692719,45.0817,118.81,118.78,0.06012356]
[1744377693019,36.66,118.81,118.78,0.06012356]
[1744377693612,8.4227,118.8,118.78,0.06012356]
[1744377694012,36.66,118.81,118.78,0.06012356]
[1744377694216,8.423,118.79,118.78,0.06012356]
[1744377695043,8.4225,118.8,118.78,0.06012356]
[1744377696138,8.423,118.79,118.78,0.06012356]
[1744377696332,36.66,118.81,118.78,0.06012356]
[1744377696532,45.0822,118.81,118.78,0.06012356]
[1744377696737,36.64,118.84,118.78,0.06012356]
[1744377697054,36.64,118.84,118.79,8.4225]
[1744377697248,36.64,118.84,118.78,0.06012356]
[1744377697847,8.422,118.81,118.78,0.06012356]
[1744377698246,8.4213,118.82,118.78,0.06012356]
[1744377698449,36.64,118.84,118.78,0.06012356]
[1744377698753,8.423,118.79,118.78,0.06012356]
[1744377698947,45.063,118.79,118.78,0.06012356]
[1744377699652,36.64,118.79,118.78,0.06012356]
[1744377700152,36.64,118.83,118.78,0.06012356]
[1744377700348,8.4221,118.81,118.78,0.06012356]
[1744377700549,8.4221,118.81,118.78,8.48372356]
[1744377700743,8.4214,118.82,118.78,0.06012356]
[1744377701746,36.64,118.83,118.79,8.4226]
[1744377703047,8.421,118.82,118.78,0.06012356]
[1744377703427,36.64,118.83,118.78,0.06012356]
[1744377703628,8.4213,118.82,118.78,0.06012356]
[1744377703828,607.32,118.85,118.78,21.31056234]
[1744377704024,8.421,118.82,118.79,8.4227]
[1744377704421,8.421,118.82,118.79,8.47944777]
[1744377704624,8.4217,118.81,118.79,0.05674777]
[1744377704827,607.32,118.85,118.79,0.05674777]
[1744377705128,8.4221,118.81,118.79,0.05674777]
[1744377705323,607.32,118.85,118.79,0.05674777]
[1744377705718,8.4213,118.82,118.79,8.47934777]
[1744377706530,8.4217,118.81,118.79,0.05674777]
[1744377707229,8.4217,118.81,118.79,8.47974777]
[1744377707528,8.4217,118.81,118.79,0.05674777]
[1744377707930,8.4213,118.82,118.79,8.47944777]
[1744377708332,36.62,118.83,118.79,8.47944777]
[1744377708533,8.4215,118.82,118.79,8.47944777]
[1744377709232,36.62,118.83,118.79,8.47944777]
[1744377709633,8.4211,118.82,118.79,8.47944777]
[1744377709834,8.4211,118.82,118.8,8.4223]
[1744377710234,8.4211,118.82,118.79,0.05674777]
[1744377710421,8.4211,118.82,118.79,8.47944777]
[1744377710627,8.4219,118.81,118.79,0.05674777]
[1744377711234,8.4213,118.82,118.79,0.05674777]
[1744377711631,8.4213,118.82,118.79,8.47944777]
[1744377712337,8.4213,118.82,118.8,8.4222]
[1744377712641,8.4213,118.82,118.79,0.05674777]
[1744377712835,36.62,118.84,118.79,0.05674777]
[1744377713041,57.87043878,118.84,118.79,0.05674777]
[1744377713341,8.4223,118.8,118.79,0.05674777]
[1744377719234,8.4248,118.77,118.73,36.62]
[1744377719640,8.4248,118.77,118.72,23.35063878]
[1744377720241,0.06344627,118.76,118.74,8.4262]
[1744377720443,8.4241,118.78,118.73,0.05565265]
[1744377720741,8.4241,118.78,118.76,8.425]
[1744377720929,8.4246,118.77,118.73,0.05565265]
[1744377721135,36.58,118.81,118.72,23.35063878]
[1744377721335,36.58,118.81,118.75,8.4255]
[1744377721543,8.4242,118.78,118.72,23.35063878]
[1744377721740,57.83043878,118.9,118.77,21.25043878]
[1744377721936,57.83043878,118.9,118.83,8.4198]
[1744377722137,8.4183,118.86,118.83,8.4198]
[1744377722343,8.4183,118.86,118.85,0.0583105]
[1744377722743,57.83043878,118.9,118.85,0.0583105]
[1744377723137,36.58,118.9,118.85,0.0583105]
[1744377723647,8.418,118.87,118.85,0.0583105]
[1744377723831,36.58,118.9,118.85,0.0583105]
[1744377724038,36.58,118.87,118.85,0.0583105]
[1744377724244,8.4181,118.86,118.85,0.0583105]
[1744377725044,36.58,118.87,118.78,4.3473]
[1744377725244,23.33343878,118.86,118.83,11.56269085]
[1744377725541,21.25043878,118.84,118.81,221.09943608]
[1744377725742,21.25043878,118.82,118.8,156.2611817]
[1744377725939,21.25043878,118.82,118.79,289.8776818]
[1744377726138,21.30587756,118.82,118.8,0.05516462]
[1744377726548,8.4216,118.81,118.8,0.05516462]
[1744377727842,0.05543878,118.82,118.8,0.05516462]
[1744377728945,303.05983139,118.81,118.8,8.47746462]
[1744377729448,303.05983139,118.81,118.8,0.05516462]
[1744377730046,311.48143139,118.81,118.8,0.05516462]
[1744377730443,303.05983139,118.81,118.8,0.05516462]
[1744377731046,327.7908362,118.81,118.8,0.05516462]
[1744377732351,336.2124362,118.81,118.8,0.05516462]
[1744377733452,8.4239,118.78,118.76,8.4249]
[1744377733846,8.4235,118.79,118.76,8.4249]
[1744377734055,36.58,118.8,118.77,8.4245]
[1744377734247,386.12936983,118.81,118.74,23.50223878]
[1744377734448,0.06108619,118.79,118.77,8.4238]
[1744377735054,0.06108619,118.79,118.78,8.4238]
[1744377735652,192.81079286,118.79,118.78,8.4238]
[1744377736361,192.81079286,118.79,118.76,0.05714224]
[1744377736857,192.81079286,118.79,118.78,8.4238]
[1744377738055,71.64688656,118.79,118.78,8.4238]
[1744377738451,71.64688656,118.79,118.77,8.4241]
[1744377738645,71.64688656,118.79,118.76,0.05714224]
[1744377738856,71.64688656,118.79,118.78,21.25043878]
[1744377739058,68.19418656,118.79,118.78,21.25043878]
[1744377739258,167.85404823,118.81,118.78,21.25043878]
[1744377739556,330.75351209,118.82,118.8,21.25043878]
[1744377739949,330.75351209,118.82,118.81,8.4216]
[1744377740456,327.30111209,118.82,118.81,8.4216]
[1744377741257,0.05238893,118.83,118.82,8.4209]
[1744377741455,83.44925189,118.86,118.82,21.25043878]
[1744377741858,73.15785189,118.86,118.85,8.4188]
[1744377742057,97.35746054,118.88,118.84,21.25043878]
[1744377742561,97.35746054,118.88,118.85,0.05662084]
[1744377742860,8.4155,118.9,118.87,8.4169]
[1744377743159,8.4155,118.9,118.85,273.82816418]
[1744377743355,2.2034,118.91,118.85,273.82816418]
[1744377743562,2.2034,118.91,118.85,310.38816418]
[1744377744057,10.6183,118.91,118.88,8.4164]
[1744377744359,8.4149,118.91,118.88,0.06058996]
[1744377744767,608.6581,118.94,118.88,0.06058996]
[1744377745054,608.6581,118.94,118.89,119.58884062]
[1744377745055,62.01783878,118.93,118.89,119.58884062]
[1744377745260,8.4153,118.9,118.89,106.84404062]
[1744377745460,36.56,118.9,118.88,323.67809041]
[1744377745762,21.25043878,118.89,118.88,323.67809041]
[1744377746258,29.66643878,118.89,118.88,323.67809041]
[1744377747156,8.4167,118.88,118.87,0.06431784]
[1744377747355,8.4167,118.88,118.87,1.784e-05]
[1744377759162,0.05602892,118.9,118.87,1.784e-05]
[1744377759766,8.416,118.89,118.87,1.784e-05]
[1744377760165,36.57602892,118.9,118.87,1.784e-05]
[1744377760669,8.4165,118.89,118.87,1.784e-05]
[1744377760866,36.57602892,118.9,118.87,1.784e-05]
[1744377761058,0.05602892,118.9,118.87,1.784e-05]
[1744377761263,36.52,118.89,118.87,1.784e-05]
[1744377761464,8.4167,118.88,118.87,1.784e-05]
[1744377764972,21.25043878,118.88,118.81,37.20084813]
[1744377765165,21.25043878,118.86,118.81,34.97124813]
[1744377765366,36.52,118.85,118.81,34.97124813]
[1744377765670,36.52,118.85,118.8,179.05863984]
[1744377766177,0.06306557,118.84,118.81,0.06371072]
[1744377766973,8.4205,118.83,118.81,0.06371072]
[1744377768276,36.52,118.88,118.81,0.06371072]
[1744377768471,36.52,118.88,118.81,2.28921072]
[1744377769172,8.4178,118.87,118.84,8.4192]
[1744377769479,0.06184223,118.86,118.84,8.47546523]
[1744377771367,8.48004223,118.86,118.84,0.05626523]
[1744377772278,0.06184223,118.86,118.84,0.05626523]
[1744377772481,0.06184223,118.86,118.84,8.47516523]
[1744377772775,8.417,118.88,118.84,0.05626523]
[1744377772978,36.52,118.91,118.84,0.05626523]
[1744377773576,8.4167,118.88,118.84,0.05626523]
[1744377774181,8.4167,118.88,118.85,8.4187]
[1744377774382,8.4167,118.88,118.84,0.05626523]
[1744377774581,8.4167,118.88,118.85,8.51040166]
[1744377774782,8.4167,118.88,118.86,8.418]
[1744377775080,8.4175,118.87,118.85,8.51040166]
[1744377775279,8.4175,118.87,118.85,16.92880166]
[1744377775480,8.4175,118.87,118.85,16.99258988]
[1744377776080,8.4181,118.86,118.85,8.57418988]
[1744377776576,8.4181,118.86,118.85,35.03503635]
[1744377777879,8.4178,118.87,118.85,35.03503635]
[1744377778382,8.4178,118.87,118.85,43.45383635]
[1744377778581,8.4178,118.87,118.85,8.48258822]
[1744377779272,8.4181,118.86,118.85,0.06378822]
[1744377782582,8.4195,118.84,118.83,34.97124813]
[1744377782781,66.14993878,118.84,118.83,34.97124813]
[1744377782979,57.73043878,118.84,118.81,93.19314421]
[1744377783487,13.27717863,118.83,118.81,93.19314421]
[1744377783681,8.4209,118.82,118.81,93.25376548]
[1744377784587,8.4209,118.82,118.81,0.06062127]
[1744377784775,0.06108714,118.83,118.81,0.06062127]
[1744377785386,0.06108714,118.83,118.81,8.48212127]
[1744377786185,8.48138714,118.83,118.81,0.06062127]
[1744377786380,0.06108714,118.83,118.81,0.06062127]
[1744377786581,36.54108714,118.83,118.81,0.06062127]
[1744377787186,8.4209,118.82,118.81,0.06062127]
[1744377788177,8.4209,118.82,118.81,2.127e-05]
[1744377788385,29.64576095,118.82,118.81,2.127e-05]
[1744377788782,8.423,118.79,118.78,11.6884322]
[1744377788983,44.903,118.79,118.78,11.6884322]
[1744377789686,8.4241,118.78,118.76,2.1995]
[1744377789879,8.4241,118.78,118.77,0.06024617]
[1744377801783,36.5,118.89,118.77,8.48024617]
[1744377801983,1.47123989,118.88,118.81,21.22486095]
[1744377802191,36.5,118.89,118.81,21.22486095]
[1744377802386,8.4177,118.87,118.81,21.22486095]
[1744377802793,8.4177,118.87,118.84,8.4192]
[1744377802990,0.05966616,118.85,118.84,8.4192]
[1744377803892,8.4177,118.87,118.84,8.4192]
[1744377804098,36.5,118.89,118.84,2.2054]
[1744377804301,36.5,118.89,118.84,4.2795]
[1744377805000,44.9163,118.89,118.84,4.2795]
[1744377805198,36.5,118.89,118.84,4.2795]
[1744377805899,8.417,118.88,118.84,4.2795]
[1744377806100,36.5,118.89,118.84,4.2795]
[1744377806398,44.9163,118.89,118.85,8.4183]
[1744377806803,44.9163,118.89,118.86,0.05406097]
[1744377807303,8.4167,118.88,118.86,0.05406097]
[1744377807807,44.9163,118.89,118.86,8.47216097]
[1744377808099,36.5,118.89,118.86,0.05406097]
[1744377808490,8.4173,118.88,118.86,0.05406097]
[1744377809501,8.4174,118.87,118.86,0.05406097]
[1744377811300,44.8574,118.87,118.86,0.05406097]
[1744377812599,8.4174,118.87,118.86,0.05406097]
[1744377813800,44.8574,118.87,118.86,0.05406097]
[1744377818314,13.26341071,118.98,118.86,0.05406097]
[1744377818524,0.1241,119.01,118.92,13.26341071]
[1744377818711,0.1241,119.01,118.94,13.26341071]
[1744377818912,8.4071,119.02,118.96,13.32767606]
[1744377819217,49.70341071,119.05,118.96,13.32767606]
[1744377819413,8.4066,119.03,118.97,8.4098]
[1744377819612,36.44,119.05,118.99,0.06268344]
[1744377820109,8.4065,119.03,118.99,0.06268344]
[1744377820698,36.44,119.05,118.99,0.06268344]
[1744377820905,8.4068,119.02,118.99,0.06268344]
[1744377821110,36.42,119.04,118.99,0.06268344]
[1744377821111,36.42,119.01,118.99,0.06268344]
[1744377821300,44.8279,119.01,118.99,0.06268344]
[1744377821596,36.42,119.01,118.99,0.06268344]
[1744377822006,44.8276,119.01,118.99,0.06268344]
[1744377822204,36.42,119.01,118.99,0.06268344]
[1744377824905,36.42,119.04,118.99,0.06268344]
[1744377825201,36.42,119.07,118.99,0.06268344]
[1744377825402,36.42,119.07,118.96,2.1948]
[1744377825403,37.88921669,119.06,118.97,21.16332519]
[1744377825707,8.4054,119.04,119.02,0.05513236]
[1744377826095,36.42,119.06,119.02,0.05513236]
[1744377826301,44.8243,119.06,119.02,0.05513236]
[1744377826803,8.4047,119.05,119.02,0.05513236]